{"text_format":"1","workbook":"xlsx","n_sheets":3,"sheets":["Лист1","Лист2","Лист3"],"not_rendered":{"charts":0,"images":0,"macros":0,"external_links":0,"defined_names":0,"comments":0,"pivot_tables":0},"unopened":[],"bounds":{"document_bytes":16777216,"sheet_cells":100000,"rows_first":2000,"rows_last":500,"rows_between":2000,"halvings":0,"cell_chars":16384,"cell_head_chars":4096},"cells_cut":0,"cells_raw":0,"read":"whole","date_system":"1900"}

{"sheet":"Лист1","index":0,"n_rows":113,"n_cols":4,"rows_kept":113,"cut":false,"hidden":false,"merged":[[111,1,111,3]]}
[]
[null,1,2,3]
["Наименование изделия","розничная цена","от 3 000 000","от 5 000 000"]
["Светодиодные светильники серии ЖКХ "]
["Светильник светодиодный ЖКХ — 24/100  (продажа с апреля 2012г.)",1600,{"$f":"B5-(B5-D5)/2","v":1450},1300]
["Светильник светодиодный ЖКХ – 08/100 ЭКО",2000,{"$f":"B6-(B6-D6)/2","v":1850},1700]
["Светодиодные светильники серии СПВО (Армстронг)","розничная цена","от 3 000 000","от 5 000 000"]
["Светильник светодиодный  СПВО-32 N",5000,4750,4500]
["Светильник светодиодный  СПВО-32 W",5000,4750,4500]
["Светодиодные светильники внутреннего освещения серии СПО","розничная цена","от 3 000 000","от 5 000 000"]
["СПО — 12/100 ЭКО ККМ\n(матовое или прозрачное стекло)",4300,3815,3330]
["СПО - 18/100 ЭКО ККМ\n(матовое или прозрачное стекло)",5500,5020,4540]
["СПО - 36/100 ЭКО ККМ\n(матовое или прозрачное стекло)",8500,8015,7530]
["СПО - 70/100 ЭКО ККМ\n(матовое или прозрачное стекло)",16000,15200,14400]
["СПО - 12/100 ЭКО\n(матовое или прозрачное стекло)",4300,3815,3330]
["СПО - 18/100 ЭКО\n(матовое или прозрачное стекло)",5500,5020,4540]
["СПО - 36/100 ЭКО\n(матовое или прозрачное стекло",8500,8015,7530]
["СПО - 70/100 \nЭКО (матовое или прозрачное стекло)",15800,15100,14400]
["Уличные светодиодные светильники серии УСС","розничная цена","от 3 000 000","от 5 000 000"]
["УСС – 9/100\n(крепление скоба)",4500,4100,3700]
[" УСС-12/100\n(крепление консольное, потолочное, скоба)",4800,4350,3900]
["УСС – 18/100\n(крепление консольное, потолочное, скоба)",5700,5400,5100]
["УСС-24/100\n(крепление консольное, потолочное, скоба)",7300,7050,6800]
["УСС – 36/100\n(крепление консольное, потолочное, скоба)",11700,11100,10500]
["УСС –48/100\n(крепление консольное, потолочное, скоба)",14800,14050,13300]
["УСС-70/100                                                                        (крепление консольное, потолочное, скоба)",16500,15825,15150]
["УСС – 150/100\n(крепление консольное, потолочное)",35000,32750,30500]
["Уличные светодиодные светильники серии УСС, ККМ","розничная цена","от 3 000 000","от 5 000 000"]
["УСС – 9/100  ККМ\n(крепление скоба)",4500,4100,3700]
[" УСС-12/100  ККМ\n(крепление консольное, потолочное, скоба)",4800,4350,3900]
["УСС – 18/100  ККМ\n(крепление консольное, потолочное, скоба)",6500,6175,5850]
["УСС-24/100  ККМ\n(крепление консольное, потолочное, скоба)",8400,7600,6800]
["УСС – 36/100  ККМ                                       (крепление консольное, потолочное, скоба)",11700,11100,10500]
["УСС – 48/100  ККМ\n(крепление консольное, потолочное, скоба) ",14800,14050,13300]
["УСС – 70/100   ККМ\n(крепление консольное, потолочное)",18500,17250,16000]
["УСС – 150/100   ККМ\n(крепление консольное, потолочное)",35000,32750,30500]
["Уличные светодиодные светильники серии УСС во взрывозащищенном исполнении","розничная цена","от 3 000 000","от 5 000 000"]
["УСС – 9/100 ExnRІІT6X\n(крепление скоба)",4900,4700,4500]
["УСС-12/100  ExnRІІT6X\n(крепление консольное, потолочное, скоба)",5300,5100,4900]
["УСС - 18/100 ExnRІІT6X\n(крепление консольное, потолочное, скоба)",7200,6700,6200]
["УСС-24/100   ExnRІІT6X\n(крепление консольное, потолочное, скоба)",8300,7600,6900]
["УСС - 36/100 ExnRІІT6X\n(крепление консольное, потолочное, скоба)",13500,12500,11500]
["УСС - 70/100  ExnRІІT6X\n(крепление консольное, потолочное, скоба)",21500,20150,18800]
["УСС – 150/100  ExnRІІT6X\n(крепление консольное, потолочное, скоба)",38000,36950,35900]
["Уличные светодиодные светильники серии УСС во взрывозащищенном исполнении,  ККМ","розничная цена","от 3 000 000","от 5 000 000"]
["УСС – 9/100 ExnRІІT6X\n(крепление скоба)",4900,4700,4500]
["УСС-12/100  ExnRІІT6X\n(крепление консольное, потолочное, скоба)",5300,5100,4900]
["УСС - 18/100 ExnRІІT6X\n(крепление консольное, потолочное, скоба)",7200,6700,6200]
["УСС-24/100   ExnRІІT6X\n(крепление консольное, потолочное, скоба)",8300,7600,6900]
["УСС - 36/100    ExnRІІT6X\n(крепление консольное, потолочное, скоба)",13500,12500,11500]
["УСС - 70/100   ExnRІІT6X\n(крепление консольное, потолочное, скоба)",21500,20150,18800]
["УСС – 150/100  ExnRІІT6X\n(крепление консольное, потолочное, скоба)",38000,36950,35900]
["Уличные светодиодные светильники серии УСС с низковольтным питанием от сети постоянного тока ( 24 В)","розничная цена","от 3 000 000","от 5 000 000"]
["УСС – 18/24/100\nDC (крепление консольное, потолочное, скоба) ",7900,7400,6900]
["УСС – 36/24/100\nDC (крепление консольное, потолочное, скоба) ",13500,12500,11500]
["УСС – 70/24/100\nDC (крепление консольное, потолочное, скоба) ",21500,20150,18800]
["Уличные светодиодные светильники серии УСС во взрывозащищенном исполнении ExnRІІT6X\nс низковольтным питанием от сети постоянного тока 24 В","розничная цена","от 3 000 000","от 5 000 000"]
["УСС – 9/24/100\nDC (крепление консольное, потолочное, скоба). ",4900,4700,4500]
["УСС – 18/24/100\nDC (крепление консольное, потолочное, скоба).",7900,7400,6900]
["УСС – 36/24/100\nDC (крепление консольное, потолочное, скоба). ",13500,12500,11500]
["УСС – 70/24/100\nDC (крепление консольное, потолочное, скоба).",21500,20150,18800]
["Светодиодные светильники серии УСС- Магистраль","розничная цена","от 3 000 000","от 5 000 000"]
["УСС – 60-Магистраль (NICHIA)\n(крепление консольное, потолочное, скоба)\nдиаграмма «Ш»  (продажа с апреля 2012г.)",12700,11600,10500]
["УСС – 90-Магистраль (NICHIA)\n(крепление консольное)\nдиаграмма «Ш»",16800,15800,14800]
["УСС – 120-Магистраль (NICHIA)\n(крепление консольное, потолочное, скоба)\nдиаграмма «Ш»  (продажа с апреля 2012г.)",21700,20300,18900]
["УСС – 180-Магистраль (NICHIA)\n(крепление консольное)\nдиаграмма «Ш»",26000,25250,24500]
["Светодиодные светильники серии УСС- Магистраль во взрывозащищенном исполнении","розничная цена","от 3 000 000","от 5 000 000"]
["УСС – 60-Магистраль\nСтепень защиты взрывозащищенности ExnRІІT6X\n(крепление консольное, потолочное, скоба)",null,0]
["УСС – 90-Магистраль\nСтепень защиты взрывозащищенности ExnRІІT6X\n(крепление консольное)",16000,15000,14000]
["УСС – 120-Магистраль\nСтепень защиты взрывозащищенности ExnRІІT6X\n(крепление консольное, потолочное, скоба)",null,{"$f":"B70-(B70-D70)/2","v":0}]
["УСС – 180-Магистраль\nСтепень защиты взрывозащищенности ExnRІІT6X\n(крепление консольное)",26000,25250,24500]
["Светодиодные светильники в низковольтном исполнении от сети постоянного тока 20-55 В и от сети переменного тока 20-38 В  (на заказ)","розничная цена","от 3 000 000","от 5 000 000"]
["УСС – 12/100,   20-55 DC/20-38 AC  (крепление консольное, потолочное, скоба)",5300,5100,4900]
["УСС – 24/100,   20-55 DC/20-38 AC  (крепление консольное, потолочное, скоба)",8300,7600,6900]
["УСС – 18/100,   20-55 DC/20-38 AC  (крепление консольное, потолочное, скоба)",7900,7400,6900]
["Светодиодные светильники серии БИО (на заказ)","розничная цена","от 3 000 000","от 5 000 000"]
["Тепличный светодиодный светильник УСС – 45 БИО (ОСРАМ)",14200,13500,12800]
["Тепличный светодиодный светильник УСС – 90 БИО (ОСРАМ)",24500,23500,22500]
["Тепличный светодиодный светильник УСС – 36 БИО",12000,11200,10400]
["Тепличный светодиодный светильник УСС – 70 БИО",17800,16650,15500]
["Тепличный светодиодный светильник УСС – 150 БИО",32000,30500,29000]
["Светодиодные прожекторы цветные (на заказ)","розничная цена","от 3 000 000","от 5 000 000"]
["ПС – 3 цв. (УСС-24) ( цвета: кр., син., зел.) ",7300,7050,6800]
["ПС – 2 цв. (УСС-12) (цвета: кр.,син., зел.) ",4800,4350,3900]
["Светильник для АЗС","розничная цена","от 3 000 000","от 5 000 000"]
["УСС-84 АЗС",20900,20200,19500]
["Светильник   УСС-42 АЗС",12900,12200,11500]
["Светильники серии ПСС (Колокол)","розничная цена","от 3 000 000","от 5 000 000"]
["ПСС — 80 ККМ    линзованный",18000,17450,16900]
["ПСС — 80  ККМ   не линзованный",16000,14975,13950]
["Светильники серии Колобок","розничная цена","от 3 000 000","от 5 000 000"]
[" ПСС-30 - Колобок",9600,9000,8400]
["ПСС-12 Колобок ",6900,6200,5500]
["Светильники садово-парковые","розничная цена","от 3 000 000","от 5 000 000"]
[" ПСС-27  ШАР",10900,10550,10200]
["Крепления к светильникам","розничная цена","от 3 000 000","от 5 000 000"]
["Крепление потолочное УСС-18/100",null,null,100]
["Крепление потолочное УСС-36/100",null,null,140]
["Крепление потолочное УСС-70/100",null,null,190]
["Крепление СПО-18/100",null,null,100]
["Крепление СПО-36/100",null,null,120]
["Крепление СПО-70/100",null,null,160]
["Рамка обрамления для АЗС","розничная цена","от 3 000 000","от 5 000 000"]
["УСС-84",null,null,680]
["УСС-42",null,null,680]
["УСС-150",null,null,890]
["УСС-70",null,null,590]
["УСС-36",null,null,530]
["УСС-36*2",null,null,580]
["УСС-24",null,null,480]
["Дополнительные функции"]
["Интегрированный датчик «день-ночь» \n(данная функция доступна для всех моделей серии УСС и ПС). \nДанная функция не распространяется на светильники во взрывозащищенном исполнении и с потолочным креплением.",1000]
["Функция снижения освещенности посредством подсоединения датчиков.\nВерсия ЭКО обеспечивает повышенную экономию электроэнергии. Для обеспечения режима энергосбережения светильник имеет дополнительный вход управления мощностью «Р». Управлять данным режимом могут любые датчики движения, освещенности и т. п., предназначенные для управления лампами накаливания и имеющие релейную систему управления.\n(данная функция доступна для всех моделей серии СПО, ЖКХ)"]

{"sheet":"Лист2","index":1,"n_rows":0,"n_cols":0,"rows_kept":0,"cut":false,"hidden":false,"merged":[]}

{"sheet":"Лист3","index":2,"n_rows":0,"n_cols":0,"rows_kept":0,"cut":false,"hidden":false,"merged":[]}